[Event "IV Estrellas 2022"]
[Site "La Palma"]
[Date "2022.08.07"]
[Round "3.1"]
[White "Pulvett Marin, Daniel Eduardo"]
[Black "Del Rey, Diego"]
[Result "1/2-1/2"]
[ECO "D40"]
[WhiteElo "2523"]
[BlackElo "2358"]
[Annotator "TA"]
[PlyCount "90"]
[EventDate "2022.08.06"]
[EventType "swiss"]
[EventCountry "ESP"]
[SourceTitle "playchess.com"]
[Source "ChessBase"]
[SourceQuality "1"]
[TimeControl "5400+30"]

{[%evp 11,90,-5,21,-8,36,40,32,39,64,64,63,63,56,46,65,68,74,70,69,75,74,68,153,139,125,143,134,84,101,59,68,31,35,35,30,0,0,0,41,39,38,10,41,0,0,0,0,0,5,4,5,5,11,0,29,16,19,17,19,0,0,0,0,0,0,0,0,0,0,0,0,0,0,0,0,0,0,0,0,0,0]} 1. d4 d5 2. c4 e6 3. Nf3 a6 4. e3 Nf6 5. Nc3 c5 6. a3 Nc6 7. Be2 {D40: Queen's Gambit Declined: Semi-Tarrasch with 5 e3.} Be7 8. dxc5 Bxc5 9. b4 {White is slightly better.} Bb6 10. Bb2 O-O 11. O-O {[#]} dxc4 $146 ({Predecessor:} 11... Bc7 12. Qc2 Ng4 13. Rad1 Qd6 14. g3 Nf6 15. Ng5 h6 16. Nxd5 exd5 17. Rxd5 hxg5 18. Rxd6 Bxd6 {½-½ (34) Guerra Fornerino,J (2131)-Alcala Vitora,W (2034) Caracas 2014}) 12. Bxc4 Qe7 13. Qc2 Bd7 14. Rfd1 h6 15. Ne4 Nxe4 16. Qxe4 {[%cal Od1d7] aiming for Rxd7!} f5 {[#]} (16... Bc7 $14) 17. Qh4 $1 $16 Qxh4 18. Nxh4 Bc8 19. Rd2 ({White should try} 19. Ng6) 19... Bc7 20. Ng6 Rd8 21. Rad1 {[%cal Og6e7] 0x0.001e3cb184b3dp-1022s more active pieces.} (21. Rc2 {looks sharper.} Kf7 22. Nh4 g6 23. Nf3) 21... Rxd2 22. Rxd2 Kf7 $1 23. Nh8+ (23. Nh4 $5 {[%cal Rh4f5]}) 23... Kg8 $1 24. Ng6 Kf7 $1 25. Nh4 g6 26. Nf3 Ra7 27. Bb3 b5 28. Nd4 Nxd4 29. Bxd4 Rb7 30. Kf1 g5 31. h3 Bb8 32. g4 {[#] Strongly threatening gxf5.} Kg6 33. f3 Rc7 {[%emt 1:47:00] The position is equal.} 34. Ke2 {[%emt 1:47:30]} Rc1 {[%emt 0:00:30]} 35. Rc2 {[%emt 0:00:30]} Rxc2+ {[%emt 0:00:30]} 36. Bxc2 $11 {[%emt 0:00:30][%mdl 4096] Endgame KBB-KBB} h5 {[%emt 0:00:30]} 37. e4 {[%emt 0:00:30]} fxg4 {[%emt 0:00:30]} 38. e5+ {[%emt 0:00:30]} ({Much weaker is} 38. fxg4 e5 39. Bb6 hxg4 40. hxg4 Bxg4+ 41. Kf2 Bc8 $15) ({Reject} 38. hxg4 hxg4 39. fxg4 e5 $15) 38... Kf7 {[%emt 0:00:30]} 39. fxg4 {[%emt 0:00:30]} hxg4 {[%emt 0:00:30]} 40. hxg4 {[%emt 0:00:30]} Bb7 {[%emt 0:00:30]} 41. a4 {[%emt 0:00:30]} bxa4 {[%emt 0:00:30]} 42. Bxa4 {[%emt 0:00:30]} Bd5 {[%emt 0:00:30]} 43. Ke3 {[%emt 0:00:30]} Bc7 {[%emt 0:00:30]} 44. Bd1 {[%emt 0:00:30]} Bc4 {[%emt 0:00:30]} 45. Bc2 {[%emt 0:00:30]} a5 {[%emt 0:00:30] Weighted Error Value: White=0.08 (flawless) /Black=0.07 (flawless)} 1/2-1/2

[Event "IV Estrellas 2022"]
[Site "La Palma"]
[Date "2022.08.07"]
[Round "3.2"]
[White "Herrera Reyes, Jose Antonio"]
[Black "Martinez Duany, Lelys Stanley"]
[Result "1-0"]
[ECO "B23"]
[WhiteElo "2345"]
[BlackElo "2497"]
[Annotator "TA"]
[PlyCount "78"]
[EventDate "2022.08.06"]
[EventType "swiss"]
[EventCountry "ESP"]
[SourceTitle "playchess.com"]
[Source "ChessBase"]
[SourceQuality "1"]
[TimeControl "5400+30"]

{[%evp 9,78,-55,-13,-21,-12,-18,-6,-10,2,0,16,0,0,-4,0,0,0,-9,0,-62,0,-29,1,-29,0,0,8,0,46,54,51,47,48,48,55,55,56,51,49,51,43,39,112,85,77,76,93,70,123,131,123,112,207,130,131,128,124,84,84,0,0,0,0,0,71,83,247,251,254,252,230]} 1. e4 {[%emt 0:00:08]} c5 {[%emt 0:03:35]} 2. Nc3 {[%emt 0:00:25]} Nc6 {[%emt 0:00:10]} 3. b3 {[%emt 0:01:13]} g6 {[%emt 0:00:30]} 4. Bb2 {[%emt 0:00:06]} Bg7 {[%emt 0:00:05]} 5. h4 {[%emt 0:00:47]} h6 {[%emt 0:01:21] [#]} 6. Bb5 $146 {[%emt 0:02:36] B23: Closed Sicilian: Lines without g3.} ({Predecessor:} 6. Qc1 Nf6 7. Nd5 d6 8. Ne2 O-O 9. f3 Re8 10. h5 g5 11. Ne3 e6 12. Ng3 {0-1 (22) Herrera Reyes,J (2345)-Iturrizaga Bonelli,E (2619) Biel 2022}) 6... Nd4 {[%emt 0:03:01]} 7. Bd3 {[%emt 0:00:37]} d6 {[%emt 0:01:09]} 8. Nge2 {[%emt 0:07:48][%cal Bg1e2,Be2g3,Bg3f1,Bf1e3][%mdl 32] The position is equal.} Nc6 {[%emt 0:03:56]} 9. Bb5 {[%emt 0:03:16]} Bd7 {[%emt 0:00:07]} 10. Bxc6 {[%emt 0:01:09]} Bxc6 {[%emt 0:00:05]} 11. h5 {[%emt 0:05:25]} e5 {[%emt 0:04:04]} 12. Ng3 {[%emt 0:07:21]} Ne7 {[%emt 0:01:18]} 13. Qe2 {[%emt 0:00:28]} Qd7 {[%emt 0:00:43]} 14. O-O-O {[%emt 0:03:03]} (14. hxg6 $11 fxg6 15. a4) 14... O-O-O {[%emt 0:00:14]} (14... g5 $15) 15. Kb1 {[%emt 0:01:06]} Rhf8 {[%emt 0:01:21]} 16. f3 {[%emt 0:03:09]} Kb8 {[%emt 0:01:31]} 17. Nf1 {[%emt 0:00:29]} f5 {[%emt 0:01:50]} 18. hxg6 {[%emt 0:09:55]} Nxg6 {[%emt 0:01:01]} (18... Rf6 $11 {was preferrable.}) 19. Ne3 $14 {[%emt 0:02:11]} Nf4 {[%emt 0:00:43]} 20. Qe1 {[%emt 0:03:09]} fxe4 {[%emt 0:00:09]} 21. fxe4 {[%emt 0:00:58]} h5 {[%emt 0:04:19]} 22. g3 {[%emt 0:05:09]} Nh3 {[%emt 0:00:31]} 23. Rh2 {[%emt 0:00:05] Inhibits Nf2.} Ng5 {[%emt 0:05:14]} 24. Qh1 {[%emt 0:00:07]} Rf3 {[%emt 0:04:24][%cal Og5e4]} 25. Ncd5 {[%emt 0:04:13]} Qf7 {[%emt 0:03:28]} (25... Rxg3 $14 26. Rxh5 Bxd5 27. Nxd5 Rf8) 26. d3 $16 {[%emt 0:01:32]} Bxd5 {[%emt 0:04:24]} 27. Nxd5 {[%emt 0:00:08]} Rxg3 {[%emt 0:00:15]} 28. Rxh5 {[%emt 0:01:19][%cal Bh2h5,Bh5f5,Bf5f7,Bf7d7,Bd7c7,Bc7e7][%mdl 32]} Rf8 {[%emt 0:00:49]} (28... Qf3 $14) 29. Bc1 $1 {[%emt 0:03:54]} Ne6 {[%emt 0:02:36] [#]} 30. Rf5 $1 {[%emt 0:00:29] Prevents Qf3.} Qg6 {[%emt 0:00:14]} (30... Qe8 $16) 31. Qh4 {[%emt 0:06:09]} Re8 {[%emt 0:00:25]} 32. Rdf1 {[%emt 0:01:01]} a6 {[%emt 0:02:18]} 33. Rf7 {[%emt 0:10:37] And now Re7 would win.} Rg4 {[%emt 0:00:54]} 34. Qh1 {[%emt 0:02:14] White is much more active.} ({White should try} 34. Qh3 $16) 34... Nf4 $1 $11 {[%emt 0:00:38]} 35. Rd7 {[%emt 0:04:06][%cal Rc1f4]} Qe6 {[%emt 0:07:15]} 36. Rc7 {[%emt 0:00:04]} Rh8 {[%emt 0:02:46]} (36... Qg6 $11 37. Rd7 (37. Bxf4 exf4 38. Rd1 Re5 $11) 37... Qe6) 37. Qf3 $16 {[%emt 0:00:37] Re7 is the strong threat.} Rf8 $2 {[%emt 0:01:03] [#]} (37... Bh6 $16 {is a better defense.}) 38. Re7 $1 $18 {[%emt 0:03:35]} ({Wrong is} 38. Nxf4 $2 exf4 39. Rxg7 (39. Re7 $2 Qxe7 40. Qxg4 Qf6 $19) 39... Rxg7 $19) 38... Qg6 {[%emt 0:01:03]} 39. Nxf4 {[%emt 0:00:34]} (39. Bxf4 exf4 40. Qf2 Bd4 $17) 39... Qg5 {[%emt 0:00:29] Weighted Error Value: White=0.12 (very precise) /Black=0.23 (precise)} 1-0

[Event "IV Estrellas 2022"]
[Site "La Palma"]
[Date "2022.08.07"]
[Round "3.3"]
[White "Acosta Sosa, Juan Manuel"]
[Black "Del Rio De Angelis, Salvador G."]
[Result "0-1"]
[ECO "E18"]
[WhiteElo "2310"]
[BlackElo "2442"]
[Annotator "TA"]
[PlyCount "71"]
[EventDate "2022.08.06"]
[EventType "swiss"]
[EventCountry "ESP"]
[SourceTitle "playchess.com"]
[Source "ChessBase"]
[SourceQuality "1"]
[TimeControl "5400+30"]

{[%evp 19,71,-1,8,0,2,4,18,6,6,0,8,0,0,-18,0,0,6,-51,-31,-46,-41,-67,-31,-29,-22,-43,-57,-243,-69,-110,-101,-97,-110,-108,-107,-107,-102,-103,-20,-20,-22,-15,8,0,0,-64,-60,-77,-79,-116,-73,-73,-73,-75]} 1. c4 {[%emt 0:00:03]} b6 {[%emt 0:00:23]} 2. Nc3 {[%emt 0:00:11]} e6 {[%emt 0:00:15]} 3. Nf3 {[%emt 0:00:29]} Bb7 {[%emt 0:00:33]} 4. g3 {[%emt 0:00:28]} Nf6 {[%emt 0:01:27]} 5. Bg2 {[%emt 0:00:10]} Be7 {[%emt 0:00:13]} 6. O-O {[%emt 0:00:24]} O-O {[%emt 0:00:08]} 7. d4 {[%emt 0:03:37]} Ne4 {[%emt 0:00:21]} 8. Nxe4 {[%emt 0:00:29]} Bxe4 {[%emt 0:00:08]} 9. Ne1 {[%emt 0:00:32]} Bxg2 {[%emt 0:00:25]} 10. Nxg2 {[%emt 0:00:07]} c6 {[%emt 0:02:05]} 11. d5 {[%emt 0:05:01] E18: Queen's Indian: Old Main Line (4 g3 Bb7 5 Bg2 Be7 6 0-0 0-0 7 Nc3).} exd5 {[%emt 0:01:46]} 12. cxd5 {[%emt 0:00:07] [#]} c5 $146 {[%emt 0:00:05]} ({Predecessor:} 12... Bf6 13. e4 Re8 14. f3 cxd5 15. Qxd5 Nc6 16. Ne3 Rc8 17. Kg2 Nd4 18. Bd2 Rc5 19. Qb7 Rc7 20. Qd5 Rc5 21. Qb7 Rc7 22. Qd5 {½-½ (22) Neelotpal,D (2445)-Burmakin,V (2559) Benasque 2013}) 13. Qc2 {[%emt 0:03:31] The position is equal.} d6 {[%emt 0:00:27]} 14. Bd2 {[%emt 0:09:44]} Bf6 {[%emt 0:01:20]} 15. Bc3 {[%emt 0:02:12]} Nd7 {[%emt 0:02:36]} 16. Ne3 {[%emt 0:01:28]} Re8 {[%emt 0:01:34][%cal Bf8e8,Be8e5,Be5h5][%mdl 32]} 17. a4 {[%emt 0:04:52]} a6 {[%emt 0:02:17]} 18. Bxf6 {[%emt 0:08:53]} (18. Nf5 $11) 18... Nxf6 $15 {[%emt 0:01:47]} 19. Qd3 {[%emt 0:04:01]} Re5 {[%emt 0:03:23]} 20. Rfd1 {[%emt 0:04:14]} Rh5 {[%emt 0:16:03]} 21. Qc4 {[%emt 0:12:05]} Qd7 {[%emt 0:02:49]} 22. f3 {[%emt 0:00:15]} Re8 {[%emt 0:00:42]} 23. Qf4 {[%emt 0:03:53]} (23. Nf1 $1 $15) 23... b5 $2 {[%emt 0:01:04]} ({Weaker is} 23... Qh3 24. g4 Rhe5 25. Nc4 Rxe2 26. Qg3 Qxg3+ 27. hxg3 $17) (23... Rhe5 $1 $19 {[%cal Re5e3]} 24. Ra3 Nh5) 24. axb5 {[%emt 0:04:22]} axb5 {[%emt 0:00:09]} 25. g4 {[%emt 0:00:27]} Rhe5 {[%emt 0:00:17]} 26. Nf5 {[%emt 0:00:59] Strongly threatening e4.} Nxd5 {[%emt 0:01:49][%cal Bf6d5,Bd5e3,Be3d1][%mdl 32]} 27. Qd2 {[%emt 0:11:06] [#]} Ne3 $1 {[%emt 0:08:37]} 28. Qxd6 {[%emt 0:05:55] [#]} Qxd6 {[%emt 0:01:16]} (28... Qc8 $1 $17 29. Nxe3 Rxe3) 29. Nxd6 $11 {[%emt 0:00:02] Black must now prevent f4.} Nxd1 {[%emt 0:07:20]} 30. Nxe8 {[%emt 0:00:06]} Nxb2 $17 {[%emt 0:00:15][%mdl 4096] Endgame KRN-KRN} 31. Ra8 {[%emt 0:01:51][%cal Re8f6]} g5 {[%emt 0:03:40]} 32. Nd6+ {[%emt 0:10:25]} (32. h4 $11) 32... Kg7 $15 {[%emt 0:00:11]} 33. Nxb5 {[%emt 0:00:01][%cal Bd6b5,Bb5c3,Bc3e4,Be4c5][%mdl 32]} Rxe2 {[%emt 0:00:27] Black is better.} 34. Nc3 {[%emt 0:00:51]} Re3 {[%emt 0:00:47] Black is more active.} 35. Ne4 {[%emt 0:00:22]} Rxf3 {[%emt 0:00:15] Hoping for ...Rf4.} 36. Nxc5 {[%emt 0:01:24] Weighted Error Value: White=0.26 (precise) /Black=0.23 (precise)} 0-1

[Event "IV Estrellas 2022"]
[Site "La Palma"]
[Date "2022.08.07"]
[Round "3.4"]
[White "Baskin, Robert"]
[Black "Brito Garcia, Alfredo"]
[Result "1-0"]
[ECO "C14"]
[WhiteElo "2408"]
[BlackElo "2291"]
[Annotator "TA"]
[PlyCount "49"]
[EventDate "2022.08.06"]
[EventType "swiss"]
[EventCountry "ESP"]
[SourceTitle "playchess.com"]
[Source "ChessBase"]
[SourceQuality "1"]
[TimeControl "5400+30"]

{[%evp 14,49,26,24,24,24,24,25,16,0,26,12,80,78,125,115,112,105,111,102,106,81,133,119,130,69,117,75,52,46,487,495,514,471,553,485,823,758]} 1. e4 {[%emt 0:00:07]} e6 {[%emt 0:00:35]} 2. d4 {[%emt 0:00:52]} d5 {[%emt 0:00:07]} 3. Nc3 {[%emt 0:00:10]} Nf6 {[%emt 0:01:03]} 4. Bg5 {[%emt 0:00:23]} Be7 {[%emt 0:00:28]} 5. e5 {[%emt 0:00:16]} Nfd7 {[%emt 0:00:14]} 6. h4 {[%emt 0:00:13]} h6 {[%emt 0:00:12]} 7. Bxe7 {[%emt 0:03:39]} Qxe7 {[%emt 0:00:28]} 8. f4 {[%emt 0:00:06]} a6 {[%emt 0:03:40] C14: French: Classical System: 4 Bg5 Be7 main line.} 9. Nf3 {[%emt 0:00:25]} c5 {[%emt 0:00:26]} 10. Qd2 {[%emt 0:00:49]} Nc6 {[%emt 0:04:01] White has an edge.} 11. Ne2 {[%emt 0:00:17]} b5 {[%emt 0:03:19]} 12. g4 {[%emt 0:01:10][%cal Bg2g4,Bg4h5][%mdl 32]} h5 {[%emt 0:03:45]} (12... b4 $11) 13. gxh5 $16 {[%emt 0:02:08] [#]} cxd4 $146 {[%emt 0:00:35]} (13... Nb6 $142) ({Predecessor:} 13... Rxh5 14. O-O-O Bb7 15. Kb1 O-O-O 16. Bh3 Kb8 17. f5 Nxd4 18. Nexd4 cxd4 19. Bg4 Rhh8 20. Qxd4 exf5 21. Bxf5 {1-0 (64) Ojeda,J (2290)-Pisani,C (2139) ICCF email 2016}) 14. Nexd4 {[%emt 0:02:46]} Nxd4 {[%emt 0:02:02]} 15. Qxd4 {[%emt 0:00:11]} Qc5 {[%emt 0:03:58]} 16. Qd2 {[%emt 0:06:19]} Rxh5 {[%emt 0:07:52]} 17. Bd3 {[%emt 0:03:33]} g6 {[%emt 0:05:32]} ({Better is} 17... Bb7) 18. O-O-O {[%emt 0:14:07]} Nb6 {[%emt 0:08:24] [#]} 19. Ng5 {[%emt 0:01:00]} (19. Qg2 $1 $16) 19... Nc4 $1 $14 {[%emt 0:15:35]} 20. Bxc4 {[%emt 0:00:52]} Qxc4 {[%emt 0:02:29]} 21. b3 $36 {[%emt 0:09:43][%mdl 2048] White has the initiative.} Qc5 {[%emt 0:01:21][%mdl 8192] [#] A mistake that costs the game.} (21... Qc7 $1 $14) 22. Ne4 $1 $18 {[%emt 0:00:45][%mdl 512] White is clearly winning.} Qa3+ {[%emt 0:05:40]} (22... Qc7 23. Nf6+) 23. Kb1 {[%emt 0:00:05] And now Nf6+ would win.} Ke7 {[%emt 0:05:09]} 24. Nf6 {[%emt 0:01:13]} Rh8 {[%emt 0:00:29]} (24... Qc5 $142 25. Nxh5 gxh5) 25. f5 {[%emt 0:03:44] Weighted Error Value: White=0.13 (very precise) /Black=0.67} 1-0

[Event "IV Estrellas 2022"]
[Site "La Palma"]
[Date "2022.08.07"]
[Round "3.5"]
[White "Cubas Cabrera, Angel Luis"]
[Black "Geske, Julian"]
[Result "1/2-1/2"]
[ECO "D12"]
[WhiteElo "2207"]
[BlackElo "2386"]
[Annotator "TA"]
[PlyCount "63"]
[EventDate "2022.08.06"]
[EventType "swiss"]
[EventCountry "ESP"]
[SourceTitle "playchess.com"]
[Source "ChessBase"]
[SourceQuality "1"]
[TimeControl "5400+30"]

{[%evp 17,63,6,5,-10,5,-5,0,-11,-3,-10,7,0,7,0,16,8,7,1,2,4,23,19,22,40,23,27,37,38,29,20,13,10,11,0,3,0,0,0,0,0,0,0,0,0,0,0,0,-16]} 1. d4 {[%emt 0:00:03]} d5 {[%emt 0:00:20]} 2. Nf3 {[%emt 0:00:21]} Nf6 {[%emt 0:00:07]} 3. c4 {[%emt 0:00:34]} c6 {[%emt 0:00:05]} 4. e3 {[%emt 0:00:11]} Bf5 {[%emt 0:00:16]} 5. Nc3 {[%emt 0:03:10]} e6 {[%emt 0:00:21]} 6. Be2 {[%emt 0:01:08]} h6 {[%emt 0:04:16]} 7. O-O {[%emt 0:01:35]} Be7 {[%emt 0:00:21]} 8. b3 {[%emt 0:01:28][%cal Bb2b3,Bb3b4][%mdl 32]} O-O {[%emt 0:00:31]} 9. Bb2 {[%emt 0:01:17]} Nbd7 {[%emt 0:05:17]} 10. Qc1 {[%emt 0:07:38] D12: Slav Defence: 3 Nf3 Nf6 4 e3 Bf5.} Qa5 {[%emt 0:06:27] [#]} 11. a3 $146 {[%emt 0:03:23]} ({Predecessor:} 11. a4 Rfe8 12. Ba3 Bxa3 13. Rxa3 dxc4 14. Bxc4 e5 15. Qb2 exd4 16. Nxd4 Bg6 17. b4 Qc7 {½-½ (38) Schoebel,W (2270)-Kunze,C (2285) Germany 2009}) 11... Rac8 {[%emt 0:03:28]} 12. b4 {[%emt 0:02:32]} Qc7 {[%emt 0:00:25]} 13. Qd1 {[%emt 0:02:01]} Ne4 {[%emt 0:03:43]} 14. Nxe4 {[%emt 0:05:21]} Bxe4 {[%emt 0:03:26]} 15. Rc1 {[%emt 0:01:35]} Qb8 {[%emt 0:01:17]} 16. Qb3 {[%emt 0:09:35]} Bd6 {[%emt 0:05:38]} 17. h3 {[%emt 0:57:08]} (17. g3 {keeps more tension.} dxc4 18. Qxc4 b5 19. Qc3) 17... dxc4 {[%emt 0:05:04]} 18. Qxc4 {[%emt 0:00:00]} Rfe8 {[%emt 0:03:58]} 19. Rfd1 {[%emt 0:00:00]} Rcd8 {[%emt 0:12:27]} 20. Nd2 {[%emt 0:00:00]} Bg6 {[%emt 0:00:45]} 21. Qb3 {[%emt 0:00:00]} e5 {[%emt 0:01:35]} 22. Nc4 {[%emt 0:00:00]} Bc7 {[%emt 0:01:08]} 23. dxe5 {[%emt 0:00:00]} (23. a4 {is interesting.} exd4 24. Bxd4 Nf8 25. Bg4) 23... Nxe5 {[%emt 0:00:20] The position is equal.} 24. Nxe5 {[%emt 0:00:00]} Bxe5 {[%emt 0:00:14]} 25. Bxe5 {[%emt 0:00:00]} Qxe5 {[%emt 0:00:31]} 26. Bf3 {[%emt 0:00:00]} Bf5 {[%emt 0:04:40]} 27. Qa4 {[%emt 0:00:00]} a6 {[%emt 0:01:47]} 28. Rxd8 {[%emt 0:00:00]} Rxd8 {[%emt 0:00:02]} 29. Rd1 {[%emt 0:00:00]} Qc7 {[%emt 0:05:02]} 30. Rd4 {[%emt 0:00:00]} Rxd4 {[%emt 0:03:28]} 31. exd4 {[%emt 0:00:00]} Be6 {[%emt 0:00:28]} 32. Qd1 {[%emt 0:00:00] Weighted Error Value: White=0.04 (flawless) /Black=0.05 (flawless)} 1/2-1/2

[Event "IV Estrellas 2022"]
[Site "La Palma"]
[Date "2022.08.07"]
[Round "3.6"]
[White "Roeder, Matthias"]
[Black "Hernandez Leon, Sergio"]
[Result "1-0"]
[ECO "A05"]
[WhiteElo "2357"]
[BlackElo "2094"]
[Annotator "RC"]
[PlyCount "67"]
[EventDate "2022.08.06"]
[EventType "swiss"]
[EventCountry "ESP"]
[SourceTitle "playchess.com"]
[Source "ChessBase"]
[SourceQuality "1"]
[TimeControl "5400+30"]

1. Nf3 {[%emt 0:00:04]} Nf6 {[%emt 0:00:21]} 2. g3 {[%emt 0:00:28]} b5 {[%emt 0:00:19]} 3. Bg2 {[%emt 0:00:41]} Bb7 {[%emt 0:00:07]} 4. O-O {[%emt 0:00:19]} e6 {[%emt 0:00:14]} 5. d3 {[%emt 0:01:42]} Be7 {[%emt 0:02:08]} 6. e4 {[%emt 0:02:40]} d6 {[%emt 0:01:08]} 7. a4 {[%emt 0:09:21]} b4 {[%emt 0:05:09]} 8. Nbd2 {[%emt 0:08:35]} O-O {[%emt 0:02:49]} 9. Re1 {[%emt 0:02:47]} c5 {[%emt 0:08:06]} 10. a5 {[%emt 0:05:23]} Qc7 {[%emt 0:10:18]} 11. Nc4 {[%emt 0:02:33]} a6 {[%emt 0:06:18]} 12. e5 {[%emt 0:06:51]} dxe5 {[%emt 0:03:24]} 13. Nfxe5 {[%emt 0:01:37]} Bxg2 {[%emt 0:02:18]} 14. Kxg2 {[%emt 0:01:37]} Nbd7 {[%emt 0:05:10]} 15. Nxd7 {[%emt 0:03:02]} Qxd7 {[%emt 0:01:59]} 16. Nb6 {[%emt 0:03:14]} Qc6+ {[%emt 0:00:10]} 17. Qf3 {[%emt 0:04:36]} Qxf3+ {[%emt 0:00:14]} 18. Kxf3 {[%emt 0:00:07]} Rad8 {[%emt 0:00:21]} 19. Ke2 {[%emt 0:00:13]} Nd5 {[%emt 0:00:40]} 20. Be3 {[%emt 0:04:26]} f6 {[%emt 0:02:54]} 21. f4 {[%emt 0:02:04]} Kf7 {[%emt 0:01:32]} 22. Bf2 {[%emt 0:04:02]} Rfe8 {[%emt 0:01:28]} 23. Nc4 {[%emt 0:02:40]} Rb8 {[%emt 0:01:07]} 24. Kf3 {[%emt 0:00:21]} Rec8 {[%emt 0:01:22]} 25. Re2 {[%emt 0:01:54]} Rc6 {[%emt 0:00:30]} 26. Rae1 {[%emt 0:00:12]} Bf8 {[%emt 0:00:25]} 27. g4 {[%emt 0:03:00]} Rd8 {[%emt 0:00:56]} 28. Bg3 {[%emt 0:02:21]} Ne7 {[%emt 0:02:55]} 29. Rd2 {[%emt 0:02:13]} Rd7 {[%emt 0:03:03]} 30. Nb6 {[%emt 0:02:08]} Rd8 {[%emt 0:38:05]} 31. Nc4 {[%emt 0:24:49]} Nc8 {[%emt 0:00:30]} 32. h4 {[%emt 0:00:30]} Nd6 {[%emt 0:00:30]} 33. Red1 {[%emt 0:00:30]} Nb5 {[%emt 0:00:30]} 34. Bf2 {[%emt 0:00:30]} 1-0

[Event "IV Estrellas 2022"]
[Site "La Palma"]
[Date "2022.08.07"]
[Round "3.7"]
[White "Marin Dorta, Alejandro"]
[Black "Garcia Blanco, Omar"]
[Result "0-1"]
[ECO "B22"]
[WhiteElo "1869"]
[BlackElo "2352"]
[Annotator "RC"]
[PlyCount "66"]
[EventDate "2022.08.06"]
[EventType "swiss"]
[EventCountry "ESP"]
[SourceTitle "playchess.com"]
[Source "ChessBase"]
[SourceQuality "1"]
[TimeControl "5400+30"]

1. e4 {[%emt 0:00:04]} c5 {[%emt 0:00:06]} 2. c3 {[%emt 0:00:17]} Nf6 {[%emt 0:00:12]} 3. e5 {[%emt 0:00:06]} Nd5 {[%emt 0:00:04]} 4. d4 {[%emt 0:00:17]} cxd4 {[%emt 0:00:07]} 5. cxd4 {[%emt 0:00:25]} d6 {[%emt 0:00:33]} 6. Nf3 {[%emt 0:00:28]} Nc6 {[%emt 0:00:07]} 7. Bc4 {[%emt 0:00:28]} e6 {[%emt 0:00:08]} 8. O-O {[%emt 0:00:31]} Be7 {[%emt 0:00:07]} 9. Qe2 {[%emt 0:01:05]} O-O {[%emt 0:00:20]} 10. Rd1 {[%emt 0:00:34]} Bd7 {[%emt 0:00:25]} 11. Bd2 {[%emt 0:04:06]} Rc8 {[%emt 0:06:18]} 12. Nc3 {[%emt 0:03:15]} Nb6 {[%emt 0:00:59]} 13. Bd3 {[%emt 0:05:32]} dxe5 {[%emt 0:01:32]} 14. dxe5 {[%emt 0:01:12]} Nb4 {[%emt 0:00:11]} 15. Be4 {[%emt 0:01:59]} Bc6 {[%emt 0:00:47]} 16. Be3 {[%emt 0:06:33]} Qe8 {[%emt 0:01:49]} 17. Bxb6 {[%emt 0:04:10]} axb6 {[%emt 0:00:11]} 18. a3 {[%emt 0:00:18]} Bxe4 {[%emt 0:10:08]} 19. Qxe4 {[%emt 0:00:46]} Nc6 {[%emt 0:00:08]} 20. Rac1 {[%emt 0:02:51]} Na5 {[%emt 0:01:39]} 21. Nd4 {[%emt 0:02:22]} Rc4 {[%emt 0:09:48]} 22. Qd3 {[%emt 0:05:14]} Qb8 {[%emt 0:08:10]} 23. b4 {[%emt 0:10:34]} Rd8 {[%emt 0:00:43]} 24. Ncb5 {[%emt 0:01:50]} Rxc1 {[%emt 0:06:07]} 25. Rxc1 {[%emt 0:00:11]} Nc6 {[%emt 0:01:09]} 26. f4 {[%emt 0:01:04]} Rd5 {[%emt 0:08:10]} 27. Qc4 {[%emt 0:05:29]} Qd8 {[%emt 0:00:15]} 28. Nxc6 {[%emt 0:04:48]} bxc6 {[%emt 0:00:06]} 29. Qxc6 {[%emt 0:02:50]} g5 {[%emt 0:00:07]} 30. Nc3 {[%emt 0:15:12]} Rd3 {[%emt 0:01:02]} 31. Ne2 {[%emt 0:06:09]} Rxa3 {[%emt 0:03:32]} 32. Qe4 {[%emt 0:06:10]} Qd2 {[%emt 0:00:54]} 33. Kf2 {[%emt 0:04:22]} Bxb4 {[%emt 0:00:22]} 0-1